fUSD/lending_fUSD_20260311
["ID","MTS","AMOUNT","RATE_DAILY","PERIOD"]
[408223571,1773262240955,-697.19801247,0.0002,2]
[408223581,1773262244066,-8700.03040495,0.0002,2]
[408223583,1773262244336,-18710.64178132,0.0002,2]
[408223672,1773262246155,-365.73017601,0.000199,2]
[408223673,1773262246164,-280.31982469,0.000199,2]
[408223675,1773262246531,-78.44749589,0.000199,2]
[408223676,1773262246540,-1921.55250411,0.0002,2]
[408223686,1773263431306,-551.42856636,0.00016,2]
[408223688,1773263431316,-500.0,0.00016125,2]
[408223689,1773263431326,-400.0,0.00016244,5]
[408223690,1773263431335,-418.238901,0.0001655,2]
[408223691,1773263431344,-300.33253264,0.00016999,2]
[408223692,1773263431355,-678.45,0.00016999,2]
[408223693,1773263431366,-21.21746736,0.00016999,2]
[408223694,1773263431376,-300.0,0.00016999,2]
[408223695,1773263431386,-300.0,0.00016999,2]
[408223696,1773263431395,-300.0,0.00016999,2]
[408223697,1773263431404,-309.165726,0.00016999,2]
[408223698,1773263431416,-890.834274,0.00016999,2]
[408223699,1773263431425,-43617.39300628,0.00017,2]
[408223700,1773263431434,-509.0,0.00017,2]
[408223701,1773263431443,-4668.66208207,0.000171,2]
[408223702,1773263431453,-1852.42,0.00017215,2]
[408223703,1773263431463,-500.0,0.0001727,3]
[408223704,1773263431472,-3240.0,0.00017337,2]
[408223706,1773263431481,-200.0,0.00017516,2]
[408223707,1773263431490,-4243.08,0.00017567,2]
[408223708,1773263431499,-5104.13,0.00017583,2]
[408223709,1773263431509,-500.0,0.000176,2]
[408223710,1773263431519,-2500.0,0.000176,2]
[408223711,1773263431528,-2001.20791963,0.000176,2]
[408223713,1773263431537,-326.38,0.0001779,2]
[408223715,1773263431547,-9564.11,0.00017871,2]
[408223717,1773263431556,-166.0,0.00018097,2]
[408223719,1773263431565,-160.0,0.00018097,2]
[408223721,1773263431574,-174.61919141,0.00018164,2]
[408223723,1773263431582,-578.20924308,0.00018164,2]
[408223725,1773263431591,-151.0,0.00018164,2]
[408223727,1773263431600,-668.65185757,0.00018164,2]
[408223729,1773263431609,-262.90206542,0.00018164,2]
[408223732,1773263431618,-151.0,0.00018219,2]
[408223734,1773263431627,-151.0,0.00018274,2]
[408223736,1773263431636,-151.0,0.00018329,2]
[408223738,1773263431645,-151.0,0.00018384,2]
[408223740,1773263431655,-151.0,0.00018439,2]
[408223742,1773263431664,-500.0,0.00018446,2]
[408223744,1773263431673,-151.0,0.00018494,2]
[408223746,1773263431682,-1000.0,0.00018547,2]
[408223748,1773263431691,-13559.0947,0.00018547,2]
[408223750,1773263431700,-151.0,0.00018549,2]
[408223752,1773263431709,-420.0,0.00018567,2]
[408223754,1773263431718,-1722.43518934,0.00018599,2]
[408223756,1773263431726,-151.0,0.00018604,2]
[408223758,1773263431735,-27898.433,0.0001861,2]
[408223760,1773263431744,-2500.0,0.0001861,2]
[408223762,1773263431753,-17178.69355085,0.00018612,2]
[408223763,1773263431762,-1888.35326737,0.00018612,2]
[408223766,1773263431772,-2922.14,0.00018633,2]
[408223768,1773263431781,-151.0,0.00018659,2]
[408223770,1773263431789,-500.0,0.00018673,2]
[408223771,1773263431798,-500.0,0.00018699,2]
[408223773,1773263431807,-500.0,0.00018699,2]
[408223775,1773263431816,-1377.42282659,0.00018699,2]
[408223777,1773263431825,-500.0,0.00018699,2]
[408223779,1773263431834,-250.0,0.00018699,2]
[408223781,1773263431843,-500.0,0.00018699,2]
[408223783,1773263431852,-250.0,0.00018699,2]
[408223785,1773263431861,-500.0,0.00018699,2]
[408223788,1773263431870,-250.0,0.00018699,2]
[408223790,1773263431879,-500.0,0.00018699,2]
[408223792,1773263431888,-500.0,0.00018699,2]
[408223794,1773263431897,-250.0,0.00018699,2]
[408223796,1773263431906,-500.0,0.00018699,2]
[408223797,1773263431915,-500.0,0.00018699,2]
[408223799,1773263431924,-250.0,0.00018699,2]
[408223801,1773263431933,-1500.0,0.00018699,2]
[408223803,1773263431942,-500.0,0.00018699,2]
[408223804,1773263431951,-500.0,0.00018699,2]
[408223805,1773263431963,-250.0,0.00018699,2]
[408223806,1773263431974,-1500.0,0.00018699,2]
[408223807,1773263431985,-500.0,0.00018699,2]
[408223808,1773263431997,-500.0,0.00018699,2]
[408223809,1773263432006,-250.0,0.00018699,2]
[408223810,1773263432015,-1500.0,0.00018699,2]
[408223811,1773263432025,-500.0,0.00018699,2]
[408223812,1773263432034,-500.0,0.00018699,2]
[408223813,1773263432043,-250.0,0.00018699,2]
[408223814,1773263432052,-1500.0,0.00018699,2]
[408223815,1773263432061,-500.0,0.00018699,2]
[408223816,1773263432070,-500.0,0.00018699,2]
[408223817,1773263432080,-250.0,0.00018699,2]
[408223818,1773263432088,-616.28613541,0.00018699,2]
[408223819,1773263432097,-250.0,0.00018699,2]
[408223820,1773263432106,-1500.0,0.00018699,2]
[408223821,1773263432114,-500.0,0.00018699,2]
[408223822,1773263432123,-500.0,0.00018699,2]
[408223823,1773263432133,-250.0,0.00018699,2]
[408223824,1773263432144,-250.0,0.00018699,2]
[408223825,1773263432154,-1500.0,0.00018699,2]
[408223826,1773263432169,-500.0,0.00018699,2]
[408223827,1773263432179,-500.0,0.00018699,2]
[408223828,1773263432189,-1500.0,0.00018699,2]
[408223829,1773263432200,-250.0,0.00018699,2]
[408223830,1773263432210,-250.0,0.00018699,2]
[408223831,1773263432220,-1500.0,0.00018699,2]
[408223832,1773263432231,-500.0,0.00018699,2]
[408223833,1773263432242,-500.0,0.00018699,2]
[408223834,1773263432251,-500.0,0.00018699,2]
[408223835,1773263432260,-250.0,0.00018699,2]
[408223836,1773263432269,-250.0,0.00018699,2]
[408223837,1773263432278,-1500.0,0.00018699,2]
[408223838,1773263432287,-500.0,0.00018699,2]
[408223839,1773263432296,-500.0,0.00018699,2]
[408223840,1773263432306,-500.0,0.00018699,2]
[408223841,1773263432316,-250.0,0.00018699,2]
[408223842,1773263432328,-1500.0,0.00018699,2]
[408223843,1773263432337,-500.0,0.00018699,2]
[408223844,1773263432348,-500.0,0.00018699,2]
[408223845,1773263432357,-500.0,0.00018699,2]
[408223846,1773263432366,-250.0,0.00018699,2]
[408223847,1773263432376,-1500.0,0.00018699,2]
[408223848,1773263432387,-910.35680646,0.00018699,2]
[408223849,1773263432396,-500.0,0.00018699,2]
[408223850,1773263432406,-250.0,0.00018699,2]
[408223851,1773263432415,-500.0,0.00018699,2]
[408223852,1773263432424,-500.0,0.00018699,2]
[408223853,1773263432433,-500.0,0.00018699,2]
[408223854,1773263432442,-1500.0,0.00018699,2]
[408223855,1773263432451,-250.0,0.00018699,2]
[408223856,1773263432461,-500.0,0.00018699,2]
[408223857,1773263432471,-500.0,0.00018699,2]
[408223858,1773263432480,-1500.0,0.00018699,2]
[408223859,1773263432490,-250.0,0.00018699,2]
[408223860,1773263432501,-500.0,0.00018699,2]
[408223861,1773263432511,-500.0,0.00018699,2]
[408223862,1773263432520,-1500.0,0.00018699,2]
[408223863,1773263432529,-1000.0,0.00018699,2]
[408223864,1773263432539,-250.0,0.00018699,2]
[408223865,1773263432555,-500.0,0.00018699,2]
[408223866,1773263432567,-500.0,0.00018699,2]
[408223867,1773263432577,-1000.0,0.00018699,2]
[408223868,1773263432587,-250.0,0.00018699,2]
[408223869,1773263432597,-200.0,0.00018699,2]
[408223870,1773263432606,-500.0,0.00018699,2]
[408223871,1773263432616,-500.0,0.00018699,2]
[408223872,1773263432625,-1000.0,0.00018699,2]
[408223873,1773263432635,-250.0,0.00018699,2]
[408223874,1773263432644,-500.0,0.00018699,2]
[408223875,1773263432653,-1000.0,0.00018699,2]
[408223876,1773263432662,-500.0,0.00018699,2]
[408223877,1773263432671,-500.0,0.00018699,2]
[408223878,1773263432680,-500.0,0.00018699,2]
[408223879,1773263432690,-1000.0,0.00018699,2]
[408223880,1773263432699,-315.23295241,0.00018699,2]
[408223881,1773263432708,-151.0,0.00018699,2]
[408223882,1773263432718,-151.0,0.00018699,2]
[408223883,1773263432727,-151.0,0.00018699,2]
[408223884,1773263432736,-151.0,0.00018699,2]
[408223885,1773263432745,-151.0,0.00018699,2]
[408223886,1773263432754,-500.0,0.00018699,2]
[408223887,1773263432763,-151.0,0.00018699,2]
[408223888,1773263432773,-151.0,0.00018699,2]
[408223889,1773263432782,-500.0,0.00018699,2]
[408223890,1773263432791,-151.0,0.00018699,2]
[408223891,1773263432800,-500.0,0.00018699,2]
[408223892,1773263432809,-250.0,0.00018699,2]
[408223893,1773263432818,-151.0,0.00018699,2]
[408223894,1773263432827,-500.0,0.00018699,2]
[408223895,1773263432836,-250.0,0.00018699,2]
[408223896,1773263432845,-151.0,0.00018699,2]
[408223897,1773263432854,-250.0,0.00018699,2]
[408223898,1773263432863,-151.0,0.00018699,2]
[408223899,1773263432872,-500.0,0.00018699,2]
[408223900,1773263432882,-250.0,0.00018699,2]
[408223901,1773263432891,-151.0,0.00018699,2]
[408223902,1773263432900,-500.0,0.00018699,2]
[408223903,1773263432909,-250.0,0.00018699,2]
[408223904,1773263432918,-151.0,0.00018699,2]
[408223905,1773263432928,-500.0,0.00018699,2]
[408223906,1773263432936,-250.0,0.00018699,2]
[408223907,1773263433145,-500.0,0.00018699,2]
[408223908,1773263433154,-500.0,0.00018699,2]
[408223909,1773263433165,-250.0,0.00018699,2]
[408223910,1773263433176,-500.0,0.00018699,2]
[408223911,1773263433185,-250.0,0.00018699,2]
[408223912,1773263433194,-500.0,0.00018699,2]
[408223913,1773263433203,-250.0,0.00018699,2]
[408223914,1773263433214,-500.0,0.00018699,2]
[408223915,1773263433224,-250.0,0.00018699,2]
[408223916,1773263433233,-500.0,0.00018699,2]
[408223917,1773263433243,-250.0,0.00018699,2]
[408223918,1773263433253,-200.0,0.00018699,2]
[408223919,1773263433262,-250.0,0.00018699,2]
[408223920,1773263433271,-279.9045709,0.00018699,2]
[408223921,1773263433280,-581.73911462,0.00018709,2]
[408223922,1773263433290,-500.0,0.00018709,2]
[408223923,1773263433300,-346.91030865,0.00018709,2]
[408223924,1773263433310,-344.48652071,0.00018709,2]
[408223925,1773263433320,-282.73497124,0.00018709,2]
[408223926,1773263433329,-500.0,0.00018709,2]
[408223927,1773263433339,-231.05250424,0.00018709,2]
[408223928,1773263433349,-500.0,0.00018709,2]
[408223929,1773263433358,-500.0,0.00018709,2]
[408223930,1773263433368,-500.0,0.00018709,2]
[408223931,1773263433377,-356.85218703,0.00018709,2]
[408223932,1773263433386,-500.0,0.00018709,2]
[408223933,1773263433395,-500.0,0.00018709,2]
[408223934,1773263433405,-500.0,0.00018709,2]
[408223935,1773263433414,-500.0,0.00018709,2]
[408223936,1773263433423,-500.0,0.00018709,2]
[408223937,1773263433432,-500.0,0.00018709,2]
[408223938,1773263433441,-500.0,0.00018709,2]
[408223939,1773263433450,-500.0,0.00018709,2]
[408223940,1773263433459,-500.0,0.00018709,2]
[408223941,1773263433468,-500.0,0.00018709,2]
[408223942,1773263433477,-500.0,0.00018709,2]
[408223943,1773263433487,-500.0,0.00018709,2]
[408223944,1773263433496,-500.0,0.00018709,2]
[408223945,1773263433506,-500.0,0.00018709,2]
[408223946,1773263433515,-500.0,0.00018709,2]
[408223947,1773263433525,-500.0,0.00018709,2]
[408223948,1773263433535,-500.0,0.00018709,2]
[408223949,1773263433544,-500.0,0.00018709,2]
[408223950,1773263433553,-500.0,0.00018709,2]
[408223951,1773263433563,-500.0,0.00018709,2]
[408223952,1773263433572,-500.0,0.00018709,2]
[408223953,1773263433582,-500.0,0.00018709,2]
[408223954,1773263433591,-500.0,0.00018709,2]
[408223955,1773263433600,-500.0,0.00018709,2]
[408223956,1773263433611,-500.0,0.00018709,2]
[408223957,1773263433620,-500.0,0.00018709,2]
[408223958,1773263433631,-500.0,0.00018709,2]
[408223959,1773263433641,-607.36770489,0.00018709,2]
[408223960,1773263433649,-500.0,0.00018709,2]
[408223961,1773263433658,-600.0,0.00018709,2]
[408223962,1773263433667,-500.0,0.00018709,2]
[408223963,1773263433677,-500.0,0.00018709,2]
[408223964,1773263433686,-500.0,0.00018709,2]
[408223965,1773263433697,-500.0,0.00018709,2]
[408223966,1773263433707,-500.0,0.0001871,2]
[408223967,1773263433716,-500.0,0.0001871,2]
[408223968,1773263433725,-500.0,0.0001871,2]
[408223969,1773263433734,-500.0,0.0001871,2]
[408223970,1773263433744,-500.0,0.0001871,2]
[408223971,1773263433754,-500.0,0.0001871,2]
[408223972,1773263433763,-500.0,0.0001871,2]
[408223973,1773263433772,-500.0,0.0001871,2]
[408223974,1773263433782,-500.0,0.0001871,2]
[408223975,1773263433793,-500.0,0.0001871,2]
[408223976,1773263433803,-500.0,0.0001871,2]
[408223977,1773263433813,-500.0,0.0001871,2]
[408223978,1773263433826,-268617.3968,0.0001871,2]
[408223979,1773263433836,-181.08010149,0.00018712,2]
[408223980,1773263433845,-576.33857023,0.00018712,2]
[408223981,1773263433854,-272.62944185,0.00018712,2]
[408223982,1773263433863,-500.0,0.00018712,2]
[408223983,1773263433872,-151.0,0.00018714,2]
[408223984,1773263433882,-1722.43518928,0.00018744,2]
[408223985,1773263433891,-17178.69355076,0.00018755,2]
[408223986,1773263433902,-151.0,0.00018769,2]
[408223987,1773263433912,-502.44343779,0.00018773,2]
[408223988,1773263433921,-500.0,0.00018773,2]
[408223989,1773263433931,-500.89524145,0.00018773,2]
[408223990,1773263433942,-2000.0,0.00018774,2]
[408223991,1773263433953,-1888.35326735,0.00018796,2]
[408223992,1773263433964,-1250.29,0.00018818,2]
[408223993,1773263433973,-1722.43518928,0.00018888,2]
[408223994,1773263433982,-17178.69355076,0.00018898,2]
[408223995,1773263433995,-18791.35,0.00018905,2]
[408223996,1773263434004,-1888.35326735,0.0001898,2]
[408223997,1773263434014,-1722.43518928,0.00019033,2]
[408223998,1773263434023,-17178.69355076,0.00019041,2]
[408223999,1773263434033,-354.32700199,0.00019065,2]
[408224000,1773263434042,-1888.35326735,0.00019164,2]
[408224001,1773263434051,-1722.43518928,0.00019177,2]
[408224002,1773263434061,-17178.69355076,0.00019184,2]
[408224003,1773263434071,-500.0,0.00019225,2]
[408224004,1773263434080,-1428.38747117,0.00019247,2]
[408224005,1773263434091,-200.0,0.00019247,2]
[408224006,1773263434102,-200.0,0.00019247,2]
[408224007,1773263434111,-290.26104003,0.00019247,2]
[408224008,1773263434120,-166.67,0.00019254,2]
[408224009,1773263434132,-187.78006525,0.0001926,2]
[408224010,1773263434141,-282.71673119,0.0001926,2]
[408224011,1773263434150,-1250.29,0.00019288,2]
[408224012,1773263434161,-200.0,0.000193,7]
[408224013,1773263434173,-1722.43518928,0.00019322,2]
[408224014,1773263434186,-17178.69355076,0.00019328,2]
[408224015,1773263434195,-1888.35326735,0.00019348,2]
[408224016,1773263434206,-500.0,0.000194,7]
[408224017,1773263434216,-1722.43518928,0.00019466,2]
[408224018,1773263434225,-17178.69355076,0.00019471,2]
[408224019,1773263434235,-800.0,0.000195,7]
[408224020,1773263434244,-1888.35326735,0.00019532,2]
[408224021,1773263434254,-1100.0,0.000196,7]
[408224022,1773263434263,-1722.43518928,0.00019611,2]
[408224023,1773263434273,-17178.69355076,0.00019614,2]
[408224024,1773263434282,-1400.0,0.000197,7]
[408224025,1773263434292,-1888.35326735,0.00019716,2]
[408224026,1773263434302,-500.0,0.00019723,2]
[408224027,1773263434312,-150.0,0.00019723,2]
[408224028,1773263434322,-150.0,0.00019723,2]
[408224029,1773263434331,-500.0,0.00019723,2]
[408224030,1773263434340,-150.0,0.00019723,2]
[408224031,1773263434351,-150.0,0.00019723,2]
[408224032,1773263434360,-150.0,0.00019723,2]
[408224033,1773263434370,-500.0,0.00019723,2]
[408224034,1773263434384,-500.0,0.00019723,2]
[408224035,1773263434394,-500.0,0.00019723,2]
[408224036,1773263434403,-150.0,0.00019723,2]
[408224037,1773263434413,-150.0,0.00019723,2]
[408224038,1773263434422,-150.0,0.00019723,2]
[408224039,1773263434432,-150.0,0.00019723,2]
[408224040,1773263434441,-150.0,0.00019723,2]
[408224041,1773263434450,-500.0,0.00019723,2]
[408224042,1773263434460,-150.0,0.00019723,2]
[408224043,1773263434469,-153.91,0.00019726,2]
[408224044,1773263434479,-1722.43518928,0.00019755,2]
[408224045,1773263434488,-17178.69355076,0.00019757,2]
[408224046,1773263434498,-1250.29,0.00019759,2]
[408224047,1773263434508,-533.36,0.00019771,2]
[408224048,1773263434518,-500.0,0.00019778,2]
[408224049,1773263434527,-150.0,0.00019778,2]
[408224050,1773263434537,-500.0,0.00019778,2]
[408224051,1773263434546,-150.0,0.00019778,2]
[408224052,1773263434555,-150.0,0.00019778,2]
[408224053,1773263434565,-150.0,0.00019778,2]
[408224054,1773263434578,-500.0,0.00019778,2]
[408224055,1773263434588,-500.0,0.00019778,2]
[408224056,1773263434597,-500.0,0.00019778,2]
[408224057,1773263434606,-150.0,0.00019778,2]
[408224058,1773263434615,-150.0,0.00019778,2]
[408224059,1773263434625,-150.0,0.00019778,2]
[408224060,1773263434635,-150.0,0.00019778,2]
[408224061,1773263434645,-150.0,0.00019778,2]
[408224062,1773263434654,-500.0,0.00019778,2]
[408224063,1773263434664,-150.0,0.00019778,2]
[408224064,1773263434674,-1481.23780761,0.00019795,2]
[408224065,1773263434684,-200.0,0.00019795,2]
[408224066,1773263434693,-200.0,0.00019795,2]
[408224067,1773263434703,-301.00069851,0.00019795,2]
[408224068,1773263434712,-150.0,0.000198,30]
[408224069,1773263434721,-200.0,0.000198,7]
[408224070,1773263434731,-194.72792766,0.00019808,2]
[408224071,1773263434740,-293.17725025,0.00019808,2]
[408224072,1773263434749,-500.0,0.00019833,2]
[408224073,1773263434759,-150.0,0.00019833,2]
[408224074,1773263434768,-500.0,0.00019833,2]
[408224075,1773263434780,-150.0,0.00019833,2]
[408224076,1773263434790,-500.0,0.00019833,2]
[408224077,1773263434799,-150.0,0.00019833,2]
[408224078,1773263434808,-500.0,0.00019833,2]
[408224079,1773263434818,-500.0,0.00019833,2]
[408224080,1773263434827,-200.0,0.00019833,2]
[408224081,1773263434838,-200.0,0.00019833,2]
[408224082,1773263434848,-200.0,0.00019833,2]
[408224083,1773263434858,-150.0,0.00019833,2]
[408224084,1773263434867,-150.0,0.00019833,2]
[408224085,1773263434877,-500.0,0.00019833,2]
[408224086,1773263434887,-162.24821319,0.00019833,2]
[408224087,1773263434897,-168.0,0.00019845,2]
[408224088,1773263434906,-500.0,0.00019887,2]
[408224089,1773263434915,-500.0,0.00019887,2]
[408224090,1773263434925,-500.0,0.00019887,2]
[408224091,1773263434935,-500.0,0.00019887,2]
[408224092,1773263434944,-500.0,0.00019887,2]
[408224093,1773263434954,-500.0,0.00019887,2]
[408224094,1773263434965,-500.0,0.00019887,2]
[408224095,1773263434974,-150.0,0.00019887,2]
[408224096,1773263434985,-180.02858772,0.00019887,2]
[408224097,1773263434994,-500.0,0.00019887,2]
[408224098,1773263435004,-150.0,0.00019887,2]
[408224099,1773263435013,-500.0,0.00019887,2]
[408224100,1773263435023,-500.0,0.00019887,2]
[408224101,1773263435033,-200.0,0.00019887,2]
[408224102,1773263435043,-500.0,0.00019887,2]
[408224103,1773263435052,-7500.01,0.00019888,2]
[408224104,1773263435062,-5000.0,0.00019899,2]
[408224105,1773263435072,-500.0,0.00019899,2]
[408224106,1773263435082,-1722.43518928,0.000199,2]
[408224107,1773263435091,-200.0,0.000199,7]
[408224108,1773263435101,-184.61520244,0.000199,2]
[408224109,1773263435110,-8298.6079761,0.000199,2]
[408224110,1773263435120,-17178.69355076,0.000199,2]
[408224111,1773263435129,-387.65176002,0.000199,2]
[408224112,1773263435139,-1888.35326735,0.000199,2]
[408224113,1773263435148,-150.0,0.00019942,2]
[408224114,1773263435171,-500.0,0.00019942,2]
[408224115,1773263435181,-475.0,0.00019942,2]
[408224116,1773263435191,-250.0,0.00019942,2]
[408224117,1773263435201,-500.0,0.00019942,2]
[408224118,1773263435211,-500.0,0.00019942,2]
[408224119,1773263435221,-500.0,0.00019942,2]
[408224120,1773263435231,-250.0,0.00019953,2]
[408224121,1773263435241,-156.17,0.00019987,2]
[408224122,1773263435251,-500.0,0.00019987,2]
[408224123,1773263435261,-500.0,0.00019987,2]
[408224124,1773263435271,-500.0,0.00019987,2]
[408224125,1773263435281,-500.0,0.00019987,2]
[408224126,1773263435291,-214.41219958,0.00019989,2]
[408224127,1773263435301,-4607.0,0.0001999,2]
[408224128,1773263435311,-214.41219958,0.0001999,2]
[408224129,1773263435321,-317.0,0.00019997,2]
[408224130,1773263435330,-250.0,0.00019997,2]
[408224131,1773263435340,-500.0,0.00019997,2]
[408224132,1773263435350,-596.0,0.00019997,2]
[408224133,1773263435360,-500.0,0.00019997,2]
[408224134,1773263435370,-151.0,0.00019997,2]
[408224135,1773263435379,-500.0,0.00019998,2]
[408224136,1773263435389,-500.0,0.00019998,2]
[408224137,1773263435399,-500.0,0.00019998,2]
[408224138,1773263435409,-500.0,0.00019998,2]
[408224139,1773263435418,-255.96292911,0.00019998,2]
[408224140,1773263435428,-412.00988586,0.00019999,2]
[408224141,1773263435437,-300.0,0.00019999,2]
[408224142,1773263435447,-500.0,0.00019999,2]
[408224143,1773263435457,-256.17008248,0.00019999,2]
[408224144,1773263435467,-13021.3663152,0.00019999,2]
[408224145,1773263435477,-500.0,0.00019999,2]
[408224146,1773263435487,-439071.7149274,0.00019999,2]
[408224147,1773263435497,-503.55073109,0.00019999,2]
[408224148,1773263435506,-3372.9055698,0.00019999,2]
[408224149,1773263435516,-500.0,0.00019999,2]
[408224150,1773263435526,-500.0,0.00019999,2]
[408224151,1773263435536,-500.0,0.00019999,2]
[408224152,1773263435546,-831.9204937,0.00019999,2]
[408224153,1773263435556,-500.0,0.00019999,2]
[408224154,1773263435566,-500.0,0.00019999,2]
[408224155,1773263435576,-436.3340644,0.00019999,2]
[408224156,1773263435585,-500.0,0.00019999,2]
[408224157,1773263435595,-500.0,0.00019999,2]
[408224158,1773263435605,-500.0,0.00019999,2]
[408224159,1773263435615,-500.0,0.00019999,2]
[408224160,1773263435624,-500.0,0.00019999,2]
[408224161,1773263435634,-500.0,0.00019999,2]
[408224162,1773263435643,-500.0,0.00019999,2]
[408224163,1773263435653,-500.0,0.00019999,2]
[408224164,1773263435663,-71857.4028799,0.00019999,2]
[408224165,1773263435673,-1303.5441244,0.00019999,2]
[408224166,1773263435683,-572.39846343,0.00019999,2]
[408224167,1773263435693,-299.06722296,0.00019999,2]
[408224168,1773263435706,-500.0,0.00019999,2]
[408224169,1773263435716,-232.42621093,0.00019999,2]
[408224170,1773263435725,-500.0,0.00019999,2]
[408224171,1773263435736,-500.0,0.00019999,2]
[408224172,1773263435746,-390.66675862,0.00019999,2]
[408224173,1773263435756,-6834.04,0.00019999,2]
[408224174,1773263435765,-5759.0,0.0002,2]
[408224175,1773263435775,-153669.77423995,0.0002,2]
[408224176,1773263435784,-558965.19348262,0.0002,2]
[408224177,1773263435806,-275.31112814,0.0002,2]
[408224178,1773263435817,-9115.51542939,0.0002,2]
[408224179,1773263435829,-205268.03731986,0.0002,2]
[408224180,1773263435840,-28173.41065044,0.0002,2]
[408224181,1773263435852,-7581.56624417,0.0002,2]
[408224182,1773263435863,-2545.40067044,0.0002,2]
[408224183,1773263435874,-100389.90654951,0.0002,2]
[408224184,1773263435886,-981.47839901,0.0002,2]
[408224185,1773263435897,-15884.88568805,0.0002,2]
[408224188,1773263437357,-150.0,0.00019348,2]
[408224190,1773263437367,-160.28518464,0.000199,2]
[408224192,1773263437377,-19999.71481536,0.0002,2]
[408224193,1773263437412,-9891.57037895,0.0002,2]
[408224194,1773263437423,-334.615,0.0002,2]
[408224195,1773263437522,-1389.5563097,0.0002,2]
[408224196,1773263437537,-1606.43883667,0.0002,2]
[408224197,1773263437549,-519.57820263,0.0002,2]
[408224198,1773263437576,-2010.60523398,0.000199,2]
[408224199,1773263437585,-1989.39476601,0.0002,2]
[408224200,1773263437632,-713.71647197,0.0002,2]
[408224201,1773263437644,-542.61525932,0.0002,2]
[408224206,1773263439707,-443966.67103029,0.0002,2]
[408224207,1773263439719,-998.14701495,0.0002,2]
[408224208,1773263439761,-3565.18647994,0.0002,2]
[408224209,1773263439975,-882574.20640406,0.0002,2]
[408224210,1773263439985,-890451.02483514,0.0002,2]
[408224211,1773263439996,-380.30947352,0.0002,2]
[408224218,1773263442424,-12235.18323148,0.0002,2]
[408224219,1773263442584,-6360.07987996,0.0002,2]
[408224220,1773263442642,-290.0,0.0002,2]
[408224221,1773263442699,-1033.27079378,0.0002,2]
[408224234,1773263445318,-4901.64377145,0.0002,2]
[408224235,1773263445330,-9808.16646871,0.0002,2]
[408224238,1773263449508,-7142.57136037,0.0002,2]
[408224239,1773263449517,-200000.0,0.0002,4]
[408224240,1773263449527,-150.01376572,0.0002,2]
[408224241,1773263449537,-2888.70833177,0.0002,6]
[408224242,1773263449546,-981.71,0.0002,2]
[408224243,1773263449556,-204.106821,0.0002,2]
[408224244,1773263449565,-3319453.84116912,0.0002,2]
[408224245,1773263449574,-150.0,0.0002,2]
[408224246,1773263449584,-6897.26677664,0.0002,2]
[408224247,1773263449593,-150.0,0.0002,2]
[408224248,1773263449603,-24638.80727439,0.0002,2]
[408224249,1773263449612,-150.0,0.0002,2]
[408224250,1773263449621,-151.0,0.0002,2]
[408224251,1773263449630,-151.0,0.0002,2]
[408224252,1773263449640,-5217.53516858,0.0002,2]
[408224253,1773263449649,-151.0,0.0002,2]
[408224254,1773263449658,-151.0,0.0002,2]